bitfinex-derivatives/quotes_BTCF0:USTF0_20251011
["timestamp","ask_amount","ask_price","bid_price","bid_amount"]
[1760148927986,0.4497907,112260.0,112230.0,0.37627]
[1760148928186,0.0889898,112260.0,112250.0,0.3608]
[1760148928393,0.1022098,112260.0,112250.0,0.3608]
[1760148928589,0.1022098,112260.0,112240.0,0.3608]
[1760148928986,0.0889977,112250.0,112240.0,0.3608]
[1760148929188,0.0889977,112250.0,112230.0,0.3608]
[1760148930190,0.4660124,112260.0,112240.0,0.00121533]
[1760148930391,0.10521,112260.0,112240.0,0.36201533]
[1760148930692,0.0889977,112250.0,112240.0,0.00121533]
[1760148930894,0.0919977,112250.0,112240.0,0.00121533]
[1760148931692,0.0889977,112250.0,112240.0,0.00121533]
[1760148932495,0.003,112250.0,112240.0,0.36201533]
[1760148932989,0.0919977,112250.0,112240.0,0.36201533]
[1760148933391,0.003,112250.0,112240.0,0.36201533]
[1760148934684,0.4919977,112250.0,112240.0,0.36201533]
[1760148934884,0.4919977,112250.0,112240.0,0.00121533]
[1760148935089,0.8527977,112250.0,112240.0,0.00121533]
[1760148935287,0.4919977,112250.0,112240.0,0.00243066]
[1760148935493,0.003,112250.0,112240.0,0.00243066]
[1760148935696,0.003,112250.0,112240.0,0.36323066]
[1760148935883,0.003,112250.0,112240.0,0.37870066]
[1760148936090,0.04432,112290.0,112280.0,0.01547]
[1760148936290,0.04432,112290.0,112280.0,0.3608]
[1760148936597,0.04432,112290.0,112280.0,0.76323066]
[1760148936891,0.35137545,112330.0,112290.0,0.01547]
[1760148936892,0.04475,112300.0,112290.0,0.01547]
[1760148937190,0.04475,112300.0,112290.0,0.34627]
[1760148937393,0.04475,112300.0,112290.0,0.34870066]
[1760148937695,0.04475,112300.0,112290.0,0.24870066]
[1760148938095,0.04875,112300.0,112290.0,0.24870066]
[1760148938393,0.04875,112300.0,112290.0,0.43323066]
[1760148938698,0.40955,112300.0,112290.0,0.07243066]
[1760148938897,0.40955,112300.0,112280.0,0.33323066]
[1760148939097,0.449766,112290.0,112280.0,0.09]
[1760148939294,0.01549,112280.0,112240.0,0.3608]
[1760148939489,0.3608,112260.0,112240.0,0.06]
[1760148939685,0.0099,112260.0,112240.0,0.06]
[1760148939892,0.0099,112260.0,112240.0,0.4208]
[1760148940198,0.3608,112270.0,112240.0,0.83575]
[1760148940390,0.3608,112270.0,112250.0,0.3608]
[1760148940586,0.3608,112270.0,112250.0,0.3708]
[1760148940790,0.3608,112270.0,112260.0,0.00121512]
[1760148940986,0.4497819,112270.0,112260.0,0.00121512]
[1760148941188,0.8497819,112270.0,112260.0,0.00121512]
[1760148942293,0.4497819,112270.0,112260.0,0.00121512]
[1760148942494,0.0976798,112260.0,112230.0,0.3608]
[1760148942699,0.3608,112250.0,112230.0,0.4308]
[1760148942905,0.3608,112250.0,112230.0,0.07]
[1760148943206,0.3608,112270.0,112230.0,0.4308]
[1760148943501,0.3608,112250.0,112230.0,0.78217545]
[1760148943702,0.3638,112270.0,112240.0,0.3608]
[1760148943907,0.3608,112250.0,112240.0,0.03]
[1760148944408,0.3628,112250.0,112240.0,0.03]
[1760148945309,0.002,112250.0,112240.0,0.7908]
[1760148945711,0.002,112250.0,112240.0,0.03]
[1760148946198,0.003,112250.0,112240.0,0.03]
[1760148946402,0.4527977,112250.0,112240.0,0.03]
[1760148946611,0.3638,112250.0,112240.0,0.03]
[1760148946805,0.003,112250.0,112240.0,0.03]
[1760148947306,0.003,112250.0,112240.0,0.80575]
[1760148949205,0.003,112250.0,112240.0,0.03]
[1760148949606,0.003,112250.0,112240.0,0.3908]
[1760148949806,0.003,112250.0,112240.0,0.03]
[1760148950003,0.003,112250.0,112220.0,0.37582117]
[1760148950004,0.88465711,112250.0,112220.0,0.37582117]
[1760148950206,0.88465711,112250.0,112220.0,0.04007117]
[1760148950207,0.3608,112240.0,112220.0,0.04007117]
[1760148950407,0.3608,112230.0,112220.0,0.04007117]
[1760148950608,0.48166521,112240.0,112220.0,0.04007117]
[1760148950910,0.39265941,112240.0,112220.0,0.02849109]
[1760148951109,0.03185941,112240.0,112220.0,0.02849109]
[1760148951310,0.03185941,112230.0,112220.0,0.38929109]
[1760148951612,0.48167301,112230.0,112220.0,0.02849109]
[1760148951812,0.03193058,112230.0,112220.0,0.02849109]
[1760148952208,0.03193058,112230.0,112220.0,0.42849109]
[1760148952406,0.03193058,112230.0,112220.0,0.02849109]
[1760148952617,7.117e-05,112230.0,112220.0,0.02849109]
[1760148952910,0.03193058,112230.0,112220.0,0.02849109]
[1760148953110,0.86537477,112230.0,112220.0,0.02849109]
[1760148953311,0.39277791,112230.0,112220.0,0.02849109]
[1760148953515,0.03197791,112230.0,112220.0,0.02849109]
[1760148953810,0.03397791,112230.0,112220.0,0.02849109]
[1760148954017,0.39477791,112230.0,112220.0,0.02849109]
[1760148954317,0.49927523,112230.0,112220.0,0.02849109]
[1760148954812,0.48378523,112230.0,112220.0,0.02849109]
[1760148955016,0.48378523,112230.0,112200.0,0.01554]
[1760148955017,0.91460216,112230.0,112200.0,0.01554]
[1760148955209,0.3608,112220.0,112200.0,0.45634]
[1760148956015,0.4586894,112210.0,112200.0,0.08]
[1760148956209,0.72217142,112210.0,112170.0,0.39977661]
[1760148956520,0.3608,112200.0,112180.0,0.3608]
[1760148956706,0.4498379,112200.0,112180.0,0.03]
[1760148957014,0.4498453,112190.0,112180.0,0.03]
[1760148957315,0.44991647,112190.0,112180.0,0.03]
[1760148957513,7.117e-05,112190.0,112180.0,0.03]
[1760148958012,0.50458647,112190.0,112180.0,0.03]
[1760148958212,0.86538647,112190.0,112180.0,0.03]
[1760148958407,0.40824193,112190.0,112160.0,0.00010065]
[1760148958609,0.40824193,112190.0,112170.0,0.3608]
[1760148958610,7.117e-05,112190.0,112170.0,0.3608]
[1760148958911,7.117e-05,112190.0,112170.0,0.3808]
[1760148959211,0.3608,112180.0,112170.0,0.02]
[1760148959411,7.117e-05,112180.0,112170.0,0.02]
[1760148959612,0.44992437,112180.0,112170.0,0.02]
[1760148959807,0.84992437,112180.0,112170.0,0.02]
[1760148960013,0.0890612,112170.0,112160.0,0.00010065]
[1760148960212,0.4498612,112170.0,112160.0,6.5e-07]
[1760148960415,0.8498612,112170.0,112160.0,6.5e-07]
[1760148960611,0.39270076,112170.0,112160.0,6.5e-07]
[1760148960814,0.03290076,112180.0,112160.0,0.77634065]
[1760148961111,0.4498612,112170.0,112160.0,6.5e-07]
[1760148961310,0.4499354,112170.0,112160.0,6.5e-07]
[1760148962424,0.4509354,112170.0,112160.0,6.5e-07]
[1760148962812,0.0010742,112170.0,112160.0,0.36080065]
[1760148963014,7.42e-05,112170.0,112160.0,0.01000065]
[1760148963320,0.4509354,112170.0,112160.0,0.01000065]
[1760148963511,0.4901354,112170.0,112160.0,0.01000065]
[1760148964018,0.8509354,112170.0,112160.0,0.01000065]
[1760148964217,1.20231085,112170.0,112160.0,0.01000065]
[1760148964412,0.0900612,112170.0,112160.0,6.5e-07]
[1760148964612,0.00108125,112170.0,112160.0,6.5e-07]
[1760148964820,0.00108125,112170.0,112160.0,0.01554065]
[1760148965218,0.00108125,112170.0,112160.0,0.77634065]
[1760148965519,0.00108125,112170.0,112160.0,0.78634065]
[1760148966214,0.00108125,112170.0,112160.0,0.87540975]
[1760148966415,0.00108125,112170.0,112160.0,1.2267852]
[1760148966609,0.3608,112210.0,112190.0,0.01554]
[1760148966809,0.4498168,112230.0,112200.0,0.37634]
[1760148967017,0.4498239,112220.0,112200.0,0.37634]
[1760148967217,0.3608,112220.0,112200.0,0.37634]
[1760148967419,0.4498223,112220.0,112190.0,0.37634]
[1760148967610,8.992e-05,112210.0,112190.0,0.3608]
[1760148967814,8.992e-05,112210.0,112190.0,0.37634]
[1760148968119,0.44991972,112210.0,112190.0,0.38634]
[1760148968619,0.44991972,112210.0,112190.0,0.3708]
[1760148968820,0.00208992,112210.0,112190.0,0.38551]
[1760148969410,0.00208992,112210.0,112200.0,0.37551]
[1760148969609,0.00208992,112210.0,112190.0,0.38551]
[1760148969610,0.00208992,112210.0,112190.0,0.37551]
[1760148969920,0.36288992,112210.0,112190.0,0.38551]
[1760148970112,0.00208992,112210.0,112190.0,0.38551]
[1760148970312,0.29091202,112220.0,112200.0,0.3608]
[1760148970519,0.001,112210.0,112200.0,0.3608]
[1760148970719,0.001,112210.0,112190.0,0.37551]
[1760148970920,0.3618,112210.0,112190.0,0.40551]
[1760148971121,0.4508298,112210.0,112190.0,0.3908]
[1760148971518,0.4498374,112200.0,112190.0,0.03]
[1760148971816,0.450832,112210.0,112190.0,0.3908]
[1760148972019,0.4498374,112200.0,112190.0,0.03]
[1760148972217,0.0890374,112200.0,112190.0,0.03]
[1760148972413,0.8540674,112200.0,112190.0,0.03]
[1760148972618,1.20544285,112200.0,112190.0,0.03]
[1760148972817,0.0890566,112180.0,112160.0,0.37551065]
[1760148973022,0.4498566,112180.0,112160.0,0.47080065]
[1760148973230,0.4498612,112170.0,112160.0,0.11000065]
[1760148973425,0.0890612,112170.0,112160.0,0.11000065]
[1760148973723,0.4498551,112180.0,112160.0,0.11000065]
[1760148973917,0.39270076,112190.0,112160.0,0.47080065]
[1760148973918,0.3608,112190.0,112160.0,0.47080065]
[1760148974119,0.4498598,112180.0,112160.0,0.47080065]
[1760148974625,0.4498563,112180.0,112160.0,0.11000065]
[1760148974828,0.4498518,112190.0,112160.0,0.48551065]
[1760148975119,0.3608,112190.0,112170.0,0.01471]
[1760148975324,0.3608,112190.0,112180.0,0.37551]
[1760148975325,0.03190076,112190.0,112180.0,0.37551]
[1760148975822,0.03190076,112210.0,112190.0,0.01471]
[1760148976123,0.03190076,112210.0,112190.0,0.37551]
[1760148976820,0.12093026,112210.0,112190.0,0.37551]
[1760148977123,0.39270076,112210.0,112180.0,0.37551]
[1760148977325,0.39270076,112210.0,112180.0,0.3708]
[1760148977326,0.48174136,112200.0,112180.0,0.3708]
[1760148977524,0.12094136,112200.0,112180.0,0.01]
[1760148977722,0.03190076,112200.0,112180.0,0.38551]
[1760148978222,0.12093966,112200.0,112180.0,0.38551]
[1760148978425,0.48173966,112200.0,112180.0,0.01]
[1760148978723,0.03190076,112190.0,112180.0,0.01]
[1760148978926,0.12094606,112190.0,112180.0,0.01]
[1760148979525,0.03190076,112190.0,112180.0,0.01]
[1760148979926,0.12094716,112190.0,112170.0,0.37551]
[1760148980226,0.03190076,112190.0,112170.0,0.40551]
[1760148980722,0.03190076,112190.0,112180.0,0.37551]
[1760148980923,0.03190076,112190.0,112180.0,0.38551]
[1760148981527,0.12094306,112200.0,112180.0,0.38551]
[1760148982421,0.03190076,112200.0,112190.0,0.3608]
[1760148982621,0.03190076,112200.0,112190.0,0.37551]
[1760148983424,0.03190076,112210.0,112200.0,0.1037474]
[1760148983734,0.03190076,112230.0,112210.0,0.01471]
[1760148984224,0.12091876,112230.0,112210.0,0.01471]
[1760148984425,0.03190076,112220.0,112210.0,0.37551]
[1760148984730,0.03190076,112220.0,112210.0,0.4645394]
[1760148984928,0.03190076,112220.0,112210.0,0.37551]
[1760148985127,0.07912815,112230.0,112210.0,0.37551]
[1760148985318,0.15202931,112240.0,112220.0,0.37551]
[1760148985518,0.0890136,112230.0,112210.0,0.37551]
[1760148985723,0.04785789,112220.0,112210.0,0.37551]
[1760148985922,0.04785789,112220.0,112210.0,0.3608]
[1760148985923,0.13687939,112220.0,112210.0,0.3608]
[1760148986120,0.0890294,112210.0,112190.0,0.37551]
[1760148986327,0.03190745,112210.0,112190.0,0.37551]
[1760148986525,0.03190745,112200.0,112190.0,0.37551]
[1760148986727,0.03190745,112200.0,112190.0,0.77551]
[1760148986934,0.12094485,112200.0,112190.0,0.3608]
[1760148987122,0.04785789,112200.0,112190.0,0.3608]
[1760148987426,0.04785789,112200.0,112190.0,0.01471]
[1760148987621,0.13690019,112200.0,112180.0,0.37551]
[1760148987824,0.13690019,112200.0,112180.0,0.3608]
[1760148987825,0.03190916,112190.0,112180.0,0.3608]
[1760148988122,0.04785789,112190.0,112180.0,0.37551]
[1760148989122,0.03190998,112190.0,112180.0,0.37551]
[1760148990529,0.03190998,112190.0,112180.0,0.77551]
[1760148990733,0.03190998,112190.0,112180.0,1.18855816]
[1760148990936,0.12095528,112190.0,112180.0,0.37551]
[1760148991328,0.03190998,112190.0,112180.0,0.37551]
[1760148991629,0.04785789,112190.0,112180.0,0.37551]
[1760148991828,0.13690319,112190.0,112180.0,0.37551]
[1760148992133,0.0890612,112170.0,112160.0,0.37551065]
[1760148992333,0.12098063,112180.0,112160.0,0.37551065]
[1760148992528,0.03192453,112170.0,112160.0,0.37551065]
[1760148992828,0.12098573,112170.0,112160.0,0.37551065]
[1760148993031,0.12100233,112170.0,112160.0,0.01471065]
[1760148993234,0.13691909,112170.0,112160.0,0.37551065]
[1760148993430,0.04785789,112170.0,112160.0,0.37551065]
[1760148993728,0.04785789,112170.0,112160.0,1.18855881]
[1760148993930,0.04785789,112170.0,112160.0,0.37551065]
[1760148994133,0.03194732,112170.0,112160.0,0.37551065]
[1760148994327,0.04785789,112170.0,112160.0,0.37551065]
[1760148994727,0.04785789,112170.0,112160.0,0.77551065]
[1760148994937,0.04785789,112170.0,112160.0,1.18855881]
[1760148995125,0.04785789,112170.0,112160.0,0.77551065]
[1760148995433,0.12101286,112180.0,112170.0,0.01471]
[1760148995828,0.12101286,112180.0,112170.0,0.37551]
[1760148996025,0.0890538,112180.0,112170.0,0.01471]
[1760148996224,0.0890538,112180.0,112170.0,0.37551]
[1760148996531,0.39275906,112190.0,112180.0,0.01471]
[1760148996532,0.03195906,112190.0,112180.0,0.01471]
[1760148996732,0.03195906,112190.0,112180.0,0.78855816]
[1760148997032,0.03195906,112210.0,112200.0,0.01471]
[1760148997239,0.03195906,112210.0,112200.0,0.42775816]
[1760148997536,0.49768259,112220.0,112210.0,0.01471]
[1760148997537,0.04785789,112220.0,112210.0,0.01471]
[1760148997735,0.03195487,112220.0,112210.0,0.78855816]
[1760148998040,0.12097637,112220.0,112210.0,0.37551]
[1760148998232,0.0890215,112220.0,112210.0,0.37551]
[1760148998832,0.002,112220.0,112210.0,0.37551]
[1760148999334,0.0910215,112220.0,112210.0,0.01471]
[1760148999539,0.0910215,112220.0,112210.0,0.37551]
[1760149000943,0.0890294,112210.0,112200.0,0.01471]
[1760149001236,0.0890294,112210.0,112200.0,0.37551]
[1760149001742,0.48377957,112220.0,112200.0,0.37551]
[1760149002045,0.39375487,112220.0,112200.0,0.37551]
[1760149002342,0.39375487,112220.0,112210.0,0.01523]
[1760149002745,0.03195487,112220.0,112210.0,0.37603]
[1760149002943,0.03195487,112220.0,112210.0,1.18907816]
[1760149003135,0.03195487,112240.0,112230.0,0.1042436]
[1760149003335,0.03195487,112240.0,112230.0,1.14987816]
[1760149003535,0.03195487,112240.0,112230.0,0.78907816]
[1760149003738,0.13685689,112250.0,112240.0,0.01523]
[1760149003939,0.49765689,112250.0,112240.0,0.01523]
[1760149004141,0.0890056,112240.0,112230.0,0.37603]
[1760149004441,0.0890056,112240.0,112230.0,0.01523]
[1760149004633,0.0890056,112240.0,112230.0,0.3608]
[1760149005039,0.4498084,112240.0,112230.0,0.01523]
[1760149005237,0.03191717,112240.0,112230.0,0.37603]
[1760149005435,0.03191717,112240.0,112230.0,1.18907816]
[1760149005848,0.03291717,112240.0,112230.0,1.18907816]
[1760149006141,0.12192277,112240.0,112230.0,0.37603]
[1760149006351,0.48272277,112240.0,112230.0,0.01523]
[1760149006543,1.20676533,112240.0,112210.0,0.01523]
[1760149006744,0.0890215,112220.0,112210.0,0.01523]
[1760149007041,0.4498215,112220.0,112200.0,0.37603]
[1760149007239,0.03191717,112230.0,112220.0,0.01523]
[1760149007440,0.12093077,112230.0,112220.0,0.01523]
[1760149008346,0.0890294,112210.0,112200.0,0.37603]
[1760149010244,0.0890374,112200.0,112180.0,0.01523]
[1760149010448,0.4498409,112200.0,112180.0,0.01523]
[1760149010651,0.48175807,112200.0,112180.0,0.01523]
[1760149010851,0.48175807,112200.0,112170.0,0.42827816]
[1760149010852,0.3608,112190.0,112160.0,0.01491065]
[1760149011145,0.48176497,112190.0,112160.0,0.37571065]
[1760149011342,0.03191717,112180.0,112170.0,0.01491]
[1760149012248,0.48177037,112180.0,112160.0,0.37571065]
[1760149012649,0.39271717,112180.0,112160.0,0.78875881]
[1760149012950,0.48177127,112180.0,112160.0,0.78875881]
[1760149013151,0.48177127,112180.0,112160.0,0.37571065]
[1760149013646,0.4498541,112180.0,112160.0,0.37571065]
[1760149013851,0.48176567,112190.0,112170.0,0.37571]
[1760149014440,0.12096567,112190.0,112170.0,0.37571]
[1760149014646,0.04785789,112190.0,112180.0,0.01491]
[1760149014844,0.49770319,112190.0,112170.0,0.01491]
[1760149015048,0.03189993,112180.0,112170.0,0.37571]
[1760149015248,0.4498453,112190.0,112170.0,0.37571]
[1760149015750,0.0890532,112180.0,112170.0,0.01491]
[1760149015950,0.4498532,112180.0,112160.0,0.37571065]
[1760149016146,0.3608,112180.0,112160.0,0.37571065]
[1760149016350,0.4587812,112170.0,112160.0,6.5e-07]
[1760149017149,0.3608,112170.0,112160.0,6.5e-07]
[1760149017347,0.0890612,112170.0,112160.0,6.5e-07]
[1760149017646,0.4890612,112170.0,112160.0,6.5e-07]
[1760149017843,0.8498612,112170.0,112160.0,6.5e-07]
[1760149018048,0.8587812,112170.0,112160.0,6.5e-07]
[1760149018243,1.31968725,112170.0,112160.0,6.5e-07]
[1760149018445,1.30372929,112170.0,112160.0,6.5e-07]
[1760149018845,0.089086,112140.0,112120.0,0.37571]
[1760149019545,0.4498805,112150.0,112120.0,0.37571]
[1760149019746,0.4498805,112150.0,112130.0,0.01491]
[1760149019946,0.3838805,112150.0,112130.0,0.01491]
[1760149020143,0.0890805,112150.0,112130.0,0.37571]
[1760149020652,0.39268245,112160.0,112140.0,0.41491]
[1760149020852,0.03288245,112170.0,112160.0,0.01491]
[1760149021154,0.12092815,112190.0,112170.0,0.01491]
[1760149021353,0.12092815,112190.0,112170.0,0.37571]
[1760149021847,0.0890532,112180.0,112170.0,0.3608]
[1760149022148,0.001,112170.0,112160.0,0.37571]
[1760149022354,0.4508661,112170.0,112150.0,0.3608]
[1760149022649,0.0890771,112150.0,112140.0,0.37571]
[1760149022853,0.3618,112170.0,112140.0,0.37571]
[1760149023048,0.3618,112170.0,112140.0,0.3608]
[1760149023049,0.0890771,112150.0,112140.0,0.3608]
[1760149023450,0.4498702,112160.0,112140.0,0.3608]
[1760149023760,0.0890694,112160.0,112140.0,0.3608]
[1760149024058,0.089085,112140.0,112130.0,0.3608]
[1760149024550,0.489085,112140.0,112120.0,0.3608]
[1760149024751,0.4508807,112150.0,112120.0,0.37571]
[1760149024957,0.4508807,112150.0,112130.0,0.3608]
[1760149025156,0.4498807,112150.0,112130.0,0.3608]
[1760149025357,0.48176315,112150.0,112130.0,0.3608]
[1760149025757,0.12096315,112150.0,112130.0,0.3608]
[1760149026057,0.48176315,112150.0,112130.0,0.3608]
[1760149026359,0.4498807,112150.0,112130.0,0.3608]
[1760149026556,0.48176315,112150.0,112130.0,0.3608]
[1760149026756,0.4498807,112150.0,112130.0,0.3608]
[1760149027158,0.03188245,112160.0,112150.0,0.01491]
[1760149027453,0.03188245,112160.0,112150.0,0.37571]
[1760149027654,0.03188245,112170.0,112150.0,0.37571]
[1760149027855,0.48174015,112180.0,112160.0,0.3608]
[1760149028060,0.49066015,112180.0,112160.0,0.3608]
[1760149028257,0.49066015,112180.0,112150.0,0.01491]
[1760149028258,0.4498612,112170.0,112150.0,0.01491]
[1760149028657,0.001,112160.0,112150.0,0.01491]
[1760149028958,0.001,112160.0,112150.0,0.37571]
[1760149029262,0.001,112160.0,112150.0,0.87783526]
[1760149029454,0.001,112160.0,112150.0,1.27783526]
[1760149029653,0.001,112160.0,112150.0,0.8647871]
[1760149029860,0.001,112160.0,112150.0,0.37571]
[1760149030162,0.001,112170.0,112150.0,0.37571]
[1760149030553,0.001,112170.0,112160.0,0.01526]
[1760149030952,0.3608,112180.0,112160.0,0.01526]
[1760149031760,0.001,112170.0,112160.0,0.01526]
[1760149032054,0.001,112170.0,112150.0,0.37571]
[1760149032259,0.001,112170.0,112160.0,0.01526]
[1760149032451,0.001,112170.0,112160.0,0.37606]
[1760149033360,0.001,112180.0,112170.0,0.01526]
[1760149033662,0.001,112180.0,112170.0,0.37606]
[1760149034057,0.03188245,112190.0,112170.0,0.37606]
[1760149034658,0.03188245,112190.0,112180.0,0.37606]
[1760149035657,0.0890532,112180.0,112160.0,0.37606]
[1760149035861,0.0890536,112180.0,112160.0,0.37606]
[1760149036060,0.0890612,112170.0,112160.0,0.37606]
[1760149036260,0.4498661,112170.0,112150.0,0.01491]
[1760149036566,0.0890691,112160.0,112150.0,0.37571]
[1760149036871,0.78207816,112160.0,112130.0,0.37606]
[1760149037059,0.0890818,112150.0,112130.0,0.37606]
[1760149037763,0.48175475,112160.0,112130.0,0.37606]
[1760149037964,0.03188245,112150.0,112130.0,0.37606]
[1760149038160,0.03188245,112150.0,112140.0,0.01526]
[1760149038469,0.03188245,112150.0,112140.0,0.37606]
[1760149038668,0.03188245,112150.0,112140.0,1.27819316]
[1760149038968,0.03188245,112160.0,112150.0,0.01526]
[1760149039166,0.03188245,112160.0,112150.0,0.37606]
[1760149039569,0.03188245,112170.0,112160.0,0.01526]
[1760149039771,0.03188245,112170.0,112160.0,0.37606]
[1760149039966,0.79268245,112170.0,112150.0,0.01526]
[1760149040171,0.0890691,112160.0,112130.0,0.37606]
[1760149040374,0.12095955,112150.0,112140.0,0.3608]
[1760149040561,0.03188245,112150.0,112140.0,0.37606]
[1760149040869,0.03188245,112150.0,112140.0,0.01526]
[1760149041074,0.03188245,112150.0,112140.0,0.37606]
[1760149041372,0.13693499,112150.0,112140.0,0.3608]
[1760149041568,0.07982459,112150.0,112140.0,0.3608]
[1760149041768,0.0890724,112160.0,112140.0,0.3608]
[1760149041968,0.0890771,112150.0,112140.0,0.3608]
[1760149042167,0.0890771,112150.0,112120.0,0.37606]
[1760149042168,0.089085,112140.0,112120.0,0.37606]
[1760149042771,0.15210061,112150.0,112130.0,0.37606]
[1760149042972,0.15210061,112150.0,112120.0,0.3608]
[1760149042973,0.0890875,112140.0,112120.0,0.3608]
[1760149043168,0.41304816,112130.0,112110.0,0.37606]
[1760149043372,0.86294416,112130.0,112110.0,0.37606]
[1760149043573,0.089096,112130.0,112110.0,0.37606]
[1760149043876,0.4498959,112130.0,112100.0,0.37606]
[1760149044082,0.0890959,112130.0,112110.0,0.3608]
[1760149044289,0.4498959,112130.0,112110.0,0.3608]
[1760149044575,0.15211031,112140.0,112120.0,0.3608]
[1760149044779,0.43274321,112150.0,112130.0,0.3608]
[1760149044979,0.4498903,112140.0,112110.0,0.37606]
[1760149045281,0.4498903,112140.0,112120.0,0.3608]
[1760149045581,0.81094646,112150.0,112130.0,0.3608]
[1760149045782,0.4498802,112150.0,112130.0,0.37606]
[1760149046575,0.089085,112140.0,112130.0,0.3608]
[1760149046882,0.0891059,112120.0,112100.0,0.01526]
[1760149047185,0.0891088,112110.0,112100.0,0.37606]
[1760149047481,0.0891088,112110.0,112090.0,0.37606]
[1760149047678,0.0891088,112110.0,112100.0,0.3608]
[1760149047880,0.0891088,112110.0,112090.0,0.37606]
[1760149048484,0.4499039,112120.0,112090.0,0.37606]
[1760149048676,0.0891039,112120.0,112100.0,0.3608]
[1760149048879,0.0891039,112120.0,112090.0,0.37606]
[1760149048880,0.0891088,112110.0,112090.0,0.37606]
[1760149049479,0.3689056,112120.0,112090.0,0.37606]
[1760149049786,0.0891056,112120.0,112100.0,0.37606]
[1760149050084,0.0891056,112120.0,112100.0,0.3608]
[1760149050885,0.00892,112110.0,112090.0,0.3608]
[1760149051186,0.4588321,112110.0,112080.0,0.37613237]
[1760149051377,0.00892,112110.0,112100.0,0.3608]
[1760149051579,0.0891088,112110.0,112100.0,0.3608]
[1760149051881,0.0891168,112100.0,112080.0,0.37613237]
[1760149052087,0.0891247,112090.0,112080.0,0.36087237]
[1760149052378,0.0891191,112100.0,112080.0,0.36087237]
[1760149052584,0.4588315,112110.0,112080.0,0.37613237]
[1760149052781,0.0980315,112110.0,112080.0,0.37613237]
[1760149052991,0.0891168,112100.0,112090.0,0.3608]
[1760149053488,0.0891096,112110.0,112090.0,0.37606]
[1760149053684,0.0891096,112110.0,112100.0,0.3608]
[1760149053886,0.0891096,112110.0,112090.0,0.37606]
[1760149055476,0.02435,112100.0,112090.0,0.01526]
[1760149055684,0.02435,112100.0,112090.0,0.37606]
[1760149055884,0.02435,112100.0,112090.0,0.3608]
[1760149056092,0.1134668,112100.0,112090.0,0.3608]
[1760149056281,0.1134747,112090.0,112080.0,0.36087237]
[1760149056586,0.02435,112090.0,112080.0,0.36087237]
[1760149056887,0.02435,112100.0,112090.0,0.04083]
[1760149057189,0.02435,112100.0,112090.0,0.40163]
[1760149057588,0.02435,112110.0,112100.0,0.01526]
[1760149057886,0.02435,112120.0,112100.0,0.37606]
[1760149058088,0.02435,112120.0,112110.0,0.3608]
[1760149058278,0.02435,112120.0,112110.0,0.39981]
[1760149058481,0.02423,112130.0,112120.0,0.03901]
[1760149058685,0.02423,112140.0,112130.0,0.01481]
[1760149058877,0.4587916,112160.0,112140.0,0.01481]
[1760149058878,0.15209481,112160.0,112140.0,0.01481]
[1760149059086,0.02423,112150.0,112140.0,0.37561]
[1760149059288,0.02423,112150.0,112140.0,0.3608]
[1760149059485,0.5133071,112150.0,112130.0,0.37561]
[1760149059687,0.1133071,112150.0,112130.0,0.37561]
[1760149059888,0.1133071,112150.0,112140.0,0.3608]
[1760149060889,0.02423,112150.0,112140.0,0.3608]
[1760149061184,0.02423,112150.0,112140.0,0.37561]
[1760149061385,0.02423,112150.0,112140.0,0.39981]
[1760149061786,0.04775735,112160.0,112150.0,0.01481]
[1760149061989,0.04775735,112160.0,112150.0,0.37561]
[1760149062490,0.51287871,112180.0,112150.0,0.37561]
[1760149062491,0.04775735,112170.0,112150.0,0.37561]
[1760149062683,0.04775735,112170.0,112160.0,0.01481]
[1760149062990,0.04775735,112170.0,112160.0,0.37561]
[1760149063880,0.0890612,112170.0,112160.0,0.3608]
[1760149064081,0.0890691,112160.0,112140.0,0.37561]
[1760149064287,0.0890771,112150.0,112140.0,0.37561]
[1760149064585,0.0984211,112160.0,112130.0,0.37561]
[1760149064789,0.0966071,112150.0,112140.0,0.3608]
[1760149064991,0.00753,112150.0,112140.0,0.3608]
[1760149065384,0.05528735,112150.0,112140.0,0.3608]
[1760149065587,0.05628735,112150.0,112140.0,0.3608]
[1760149065890,0.05628735,112150.0,112140.0,0.37561]
[1760149066892,0.05628735,112150.0,112140.0,0.3608]
[1760149067489,0.14536445,112150.0,112130.0,0.37561]
[1760149067885,0.16107235,112140.0,112110.0,0.37561]
[1760149068088,0.52187235,112140.0,112120.0,0.3608]
[1760149068286,0.52187235,112140.0,112110.0,0.37561]
[1760149068287,0.02423,112120.0,112110.0,0.37561]
[1760149068497,0.02423,112120.0,112110.0,0.39981]
[1760149068693,0.04775735,112130.0,112120.0,0.03901]
[1760149068893,0.07198735,112130.0,112120.0,0.37561]
[1760149069596,0.02423,112130.0,112120.0,0.39981]
[1760149069793,0.04775735,112140.0,112130.0,0.03903]
[1760149069992,0.07320735,112140.0,112130.0,0.39983]
[1760149070393,0.05528735,112150.0,112130.0,0.8889229]
[1760149070591,0.05539174,112150.0,112140.0,0.488915]
[1760149070786,0.00753,112150.0,112140.0,0.39983]
[1760149071198,0.00753,112150.0,112140.0,0.40983]
[1760149071797,0.03943125,112150.0,112140.0,0.40983]
[1760149072201,0.00853,112150.0,112140.0,1.25106126]
[1760149072588,0.00853,112150.0,112140.0,0.80983]
[1760149072793,0.06588125,112150.0,112140.0,0.40983]
[1760149073394,0.1230571,112150.0,112130.0,0.37627]
[1760149073590,0.1230571,112150.0,112140.0,0.3608]
[1760149073791,0.06588125,112150.0,112140.0,0.3608]
[1760149074194,0.06588125,112150.0,112140.0,0.37627]
[1760149074600,0.06488125,112150.0,112140.0,0.01547]
[1760149074800,0.089085,112140.0,112130.0,0.3608]
[1760149074995,0.52963951,112140.0,112110.0,0.37561]
[1760149075296,0.12098577,112130.0,112110.0,0.37561]
[1760149075501,0.12098387,112130.0,112110.0,0.37561]
[1760149075707,0.03189057,112120.0,112110.0,0.37561]
[1760149075897,0.12099147,112120.0,112110.0,0.3608]
[1760149076098,0.03189057,112120.0,112110.0,0.3608]
[1760149076603,0.04786174,112120.0,112110.0,0.37627]
[1760149076791,0.04786174,112120.0,112110.0,0.3608]
[1760149077792,0.04786174,112120.0,112110.0,0.37627]
[1760149077994,0.07331174,112120.0,112110.0,0.37627]
[1760149078490,0.07331174,112120.0,112110.0,0.39983]